[Event "*** Titled Tuesday Blitz"]
[Site "Chess.com"]
[Date "2021.02.02"]
[Round "3"]
[White "Chernobay_Artem"]
[Black "Deepweb2020"]
[Result "1-0"]
[WhiteElo "2581"]
[BlackElo "2388"]
[TimeControl "180+1"]
[EndTime "10:30:44 PST"]
[Termination "Chernobay_Artem won by checkmate"]

1. d4 {[%clk 0:02:58.7]} 1... Nf6 {[%clk 0:02:58.4]} 2. c4 {[%clk 0:02:59.2]}
2... e6 {[%clk 0:02:58.7]} 3. Nf3 {[%clk 0:02:57.1]} 3... Bb4+ {[%clk
0:02:59.1]} 4. Nbd2 {[%clk 0:02:56.3]} 4... b6 {[%clk 0:02:58.3]} 5. a3 {[%clk
0:02:55.8]} 5... Bxd2+ {[%clk 0:02:58.3]} 6. Qxd2 {[%clk 0:02:53.8]} 6... Bb7
{[%clk 0:02:58.3]} 7. e3 {[%clk 0:02:53.9]} 7... O-O {[%clk 0:02:58.2]} 8. Be2
{[%clk 0:02:53.8]} 8... d6 {[%clk 0:02:57.3]} 9. b4 {[%clk 0:02:53.2]} 9... Nbd7
{[%clk 0:02:55.8]} 10. Bb2 {[%clk 0:02:53.1]} 10... Qe7 {[%clk 0:02:54.8]} 11.
O-O {[%clk 0:02:52.5]} 11... Ne4 {[%clk 0:02:53.7]} 12. Qc2 {[%clk 0:02:52.1]}
12... f5 {[%clk 0:02:53.8]} 13. d5 {[%clk 0:02:14.3]} 13... e5 {[%clk
0:02:50.4]} 14. Nd2 {[%clk 0:02:10.9]} 14... Nxd2 {[%clk 0:02:44.1]} 15. Qxd2
{[%clk 0:02:10.1]} 15... f4 {[%clk 0:02:40.1]} 16. Bg4 {[%clk 0:01:49.4]} 16...
Bc8 {[%clk 0:02:21.1]} 17. Rae1 {[%clk 0:01:44]} 17... f3 {[%clk 0:01:58.1]} 18.
Bxf3 {[%clk 0:01:38.6]} 18... Rxf3 {[%clk 0:01:52.1]} 19. gxf3 {[%clk
0:01:39.5]} 19... Nf6 {[%clk 0:01:53]} 20. Kh1 {[%clk 0:01:38.2]} 20... Bf5
{[%clk 0:01:39]} 21. e4 {[%clk 0:01:34.6]} 21... Bh3 {[%clk 0:01:35.2]} 22. Rg1
{[%clk 0:01:34.5]} 22... Nh5 {[%clk 0:01:35.5]} 23. Qg5 {[%clk 0:01:29.2]} 23...
Qf7 {[%clk 0:01:31.3]} 24. f4 {[%clk 0:01:05.3]} 24... Nxf4 {[%clk 0:01:22.6]}
25. Re3 {[%clk 0:01:02.6]} 25... Bd7 {[%clk 0:01:07.2]} 26. Rf3 {[%clk
0:00:53.4]} 26... Kh8 {[%clk 0:00:18.6]} 27. Rxf4 {[%clk 0:00:44.6]} 27... exf4
{[%clk 0:00:16.3]} 28. Qxg7+ {[%clk 0:00:34.2]} 28... Qxg7 {[%clk 0:00:15.4]}
29. Rxg7 {[%clk 0:00:35.1]} 29... Bh3 {[%clk 0:00:11.2]} 30. Rg1# {[%clk
0:00:31.6]} 1-0

[Event "*** Titled Tuesday Blitz"]
[Site "Chess.com"]
[Date "2021.02.02"]
[Round "3"]
[White "rududuyk"]
[Black "Fortitudine"]
[Result "0-1"]
[WhiteElo "2145"]
[BlackElo "2355"]
[TimeControl "180+1"]
[EndTime "10:30:44 PST"]
[Termination "Fortitudine won on time"]

1. e4 {[%clk 0:03:00.9]} 1... c5 {[%clk 0:02:55.5]} 2. Nf3 {[%clk 0:03:00.7]}
2... d6 {[%clk 0:02:50.1]} 3. d4 {[%clk 0:03:01]} 3... cxd4 {[%clk 0:02:51]} 4.
Nxd4 {[%clk 0:03:01.6]} 4... Nf6 {[%clk 0:02:51.6]} 5. Nc3 {[%clk 0:03:01.9]}
5... Nc6 {[%clk 0:02:51.3]} 6. Bg5 {[%clk 0:02:58.9]} 6... Bd7 {[%clk
0:02:50.6]} 7. Qd2 {[%clk 0:02:09]} 7... Rc8 {[%clk 0:02:48.2]} 8. f4 {[%clk
0:01:47]} 8... Nxd4 {[%clk 0:02:39.4]} 9. Qxd4 {[%clk 0:01:46.3]} 9... Qa5
{[%clk 0:02:39.1]} 10. O-O-O {[%clk 0:01:42.5]} 10... Rxc3 {[%clk 0:02:37.9]}
11. Qxc3 {[%clk 0:01:42.3]} 11... Qxc3 {[%clk 0:02:37.3]} 12. bxc3 {[%clk
0:01:42]} 12... Nxe4 {[%clk 0:02:37.6]} 13. Rd4 {[%clk 0:01:14.1]} 13... Nxc3
{[%clk 0:01:49.5]} 14. Kb2 {[%clk 0:01:12.6]} 14... Na4+ {[%clk 0:01:47.5]} 15.
Ka3 {[%clk 0:01:08.3]} 15... Nc5 {[%clk 0:01:42.5]} 16. Bc4 {[%clk 0:01:01]}
16... a6 {[%clk 0:01:04.9]} 17. Re1 {[%clk 0:00:54.8]} 17... Ne6 {[%clk
0:00:59.9]} 18. Rd5 {[%clk 0:00:35.3]} 18... h6 {[%clk 0:00:54.8]} 19. Bh4
{[%clk 0:00:27.3]} 19... g5 {[%clk 0:00:53.5]} 20. Bg3 {[%clk 0:00:22.5]} 20...
gxf4 {[%clk 0:00:53]} 21. Bh4 {[%clk 0:00:22.3]} 21... Bg7 {[%clk 0:00:50.1]}
22. Rf5 {[%clk 0:00:15.5]} 22... Be5 {[%clk 0:00:47.1]} 23. Rfxe5 {[%clk
0:00:11.6]} 23... dxe5 {[%clk 0:00:47]} 24. Rxe5 {[%clk 0:00:12.5]} 24... Rg8
{[%clk 0:00:44.2]} 25. Bd5 {[%clk 0:00:11.4]} 25... b5 {[%clk 0:00:40.3]} 26.
Bb7 {[%clk 0:00:07.9]} 26... a5 {[%clk 0:00:39.8]} 27. c3 {[%clk 0:00:07.5]}
27... Rg4 {[%clk 0:00:37.6]} 28. Bf2 {[%clk 0:00:06.8]} 28... b4+ {[%clk
0:00:37.6]} 29. cxb4 {[%clk 0:00:06.1]} 29... axb4+ {[%clk 0:00:38.5]} 30. Kxb4
{[%clk 0:00:05.8]} 30... f3+ {[%clk 0:00:38.6]} 31. Kc3 {[%clk 0:00:03.3]} 31...
Rxg2 {[%clk 0:00:36.6]} 0-1

[Event "*** Titled Tuesday Blitz"]
[Site "Chess.com"]
[Date "2021.02.02"]
[Round "3"]
[White "c_r_e_e_p_e_r"]
[Black "chegueps"]
[Result "1-0"]
[WhiteElo "2371"]
[BlackElo "2516"]
[TimeControl "180+1"]
[EndTime "10:30:46 PST"]
[Termination "c_r_e_e_p_e_r won by checkmate"]

1. d4 {[%clk 0:03:00.9]} 1... Nf6 {[%clk 0:02:59.2]} 2. c4 {[%clk 0:03:01]} 2...
e6 {[%clk 0:02:56.4]} 3. Nc3 {[%clk 0:03:01.1]} 3... Bb4 {[%clk 0:02:55.4]} 4.
e3 {[%clk 0:03:01.3]} 4... O-O {[%clk 0:02:53.9]} 5. a3 {[%clk 0:03:01.8]} 5...
Bxc3+ {[%clk 0:02:53.5]} 6. bxc3 {[%clk 0:03:02.7]} 6... b6 {[%clk 0:02:48.6]}
7. Bd3 {[%clk 0:03:03.1]} 7... c5 {[%clk 0:02:40.3]} 8. e4 {[%clk 0:03:02.4]}
8... d6 {[%clk 0:02:38]} 9. e5 {[%clk 0:02:57.6]} 9... Ne8 {[%clk 0:02:26.3]}
10. Nf3 {[%clk 0:02:43.5]} 10... Nc6 {[%clk 0:02:22.9]} 11. Bxh7+ {[%clk
0:02:39]} 11... Kxh7 {[%clk 0:01:35.7]} 12. Ng5+ {[%clk 0:02:39.1]} 12... Kg6
{[%clk 0:01:35.8]} 13. h4 {[%clk 0:02:26.8]} 13... dxe5 {[%clk 0:01:18.4]} 14.
h5+ {[%clk 0:02:26.5]} 14... Kf6 {[%clk 0:01:15.3]} 15. dxe5+ {[%clk 0:01:50.5]}
15... Ke7 {[%clk 0:01:13.2]} 16. Qf3 {[%clk 0:01:41.9]} 16... Bb7 {[%clk
0:01:03.4]} 17. Bf4 {[%clk 0:01:41.8]} 17... Na5 {[%clk 0:01:00.2]} 18. Ne4
{[%clk 0:01:24.3]} 18... Bxe4 {[%clk 0:00:51]} 19. Qxe4 {[%clk 0:01:23.8]} 19...
Qc8 {[%clk 0:00:44.3]} 20. h6 {[%clk 0:01:23]} 20... gxh6 {[%clk 0:00:43.7]} 21.
Bxh6 {[%clk 0:01:18.7]} 21... Rg8 {[%clk 0:00:34.1]} 22. Rd1 {[%clk 0:01:07.5]}
22... Qc6 {[%clk 0:00:28]} 23. Qh4+ {[%clk 0:01:05]} 23... f6 {[%clk 0:00:28.1]}
24. exf6+ {[%clk 0:00:58.7]} 24... Nxf6 {[%clk 0:00:23.7]} 25. Bg5 {[%clk
0:00:55.9]} 25... Raf8 {[%clk 0:00:23.5]} 26. Qh7+ {[%clk 0:00:33.6]} 26... Rf7
{[%clk 0:00:09.1]} 27. Bxf6+ {[%clk 0:00:32.6]} 27... Kxf6 {[%clk 0:00:08.9]}
28. Qxg8 {[%clk 0:00:30.6]} 28... Qe4+ {[%clk 0:00:07.3]} 29. Kf1 {[%clk
0:00:30.9]} 29... Qxc4+ {[%clk 0:00:07]} 30. Kg1 {[%clk 0:00:31.1]} 30... Qf4
{[%clk 0:00:05.9]} 31. Qh8+ {[%clk 0:00:29.1]} 31... Ke7 {[%clk 0:00:05.9]} 32.
Qd8# {[%clk 0:00:26.8]} 1-0

[Event "*** Titled Tuesday Blitz"]
[Site "Chess.com"]
[Date "2021.02.02"]
[Round "3"]
[White "Shahaliyev"]
[Black "Hikaru"]
[Result "1-0"]
[WhiteElo "2742"]
[BlackElo "3171"]
[TimeControl "180+1"]
[EndTime "10:30:48 PST"]
[Termination "Shahaliyev won by resignation"]

1. e4 {[%clk 0:03:00.9]} 1... e5 {[%clk 0:02:57.4]} 2. Nf3 {[%clk 0:03:00.8]}
2... Nc6 {[%clk 0:02:57.9]} 3. Bb5 {[%clk 0:03:00.5]} 3... a6 {[%clk 0:02:55.3]}
4. Ba4 {[%clk 0:03:00.3]} 4... g6 {[%clk 0:02:55.6]} 5. c3 {[%clk 0:02:58.7]}
5... Bg7 {[%clk 0:02:52.5]} 6. d4 {[%clk 0:02:58.6]} 6... b5 {[%clk 0:02:53.1]}
7. Bc2 {[%clk 0:02:58]} 7... exd4 {[%clk 0:02:53.1]} 8. cxd4 {[%clk 0:02:58.1]}
8... d5 {[%clk 0:02:51.7]} 9. exd5 {[%clk 0:02:57.8]} 9... Nce7 {[%clk
0:02:50.8]} 10. Nc3 {[%clk 0:02:57.1]} 10... Nf6 {[%clk 0:02:50.8]} 11. O-O
{[%clk 0:02:46.7]} 11... O-O {[%clk 0:02:50.4]} 12. h3 {[%clk 0:02:46.8]} 12...
Nexd5 {[%clk 0:02:49.7]} 13. Bb3 {[%clk 0:02:38.1]} 13... h6 {[%clk 0:02:46.5]}
14. Re1 {[%clk 0:02:36.6]} 14... Bb7 {[%clk 0:02:41.9]} 15. Bd2 {[%clk
0:02:35.8]} 15... Nxc3 {[%clk 0:02:37.3]} 16. Bxc3 {[%clk 0:02:31.3]} 16... Nd5
{[%clk 0:02:33]} 17. Ba5 {[%clk 0:02:28.8]} 17... Qd6 {[%clk 0:02:31.3]} 18. Rc1
{[%clk 0:02:25.5]} 18... Rac8 {[%clk 0:02:31]} 19. Ne5 {[%clk 0:02:17.3]} 19...
Kh7 {[%clk 0:02:08.4]} 20. h4 {[%clk 0:02:07]} 20... h5 {[%clk 0:01:59]} 21. a3
{[%clk 0:01:41.8]} 21... Ba8 {[%clk 0:01:35.8]} 22. Qd2 {[%clk 0:01:27.3]} 22...
Bh6 {[%clk 0:01:33.8]} 23. Qc2 {[%clk 0:01:05.6]} 23... Bxc1 {[%clk 0:01:29.7]}
24. Qxc1 {[%clk 0:01:04.9]} 24... c5 {[%clk 0:01:29.2]} 25. dxc5 {[%clk
0:01:00.1]} 25... Rxc5 {[%clk 0:01:29.4]} 26. Qd2 {[%clk 0:00:55.6]} 26... Rfc8
{[%clk 0:00:30.1]} 27. Nxf7 {[%clk 0:00:51.7]} 27... Qf4 {[%clk 0:00:25.2]} 28.
Ng5+ {[%clk 0:00:47.1]} 28... Kh6 {[%clk 0:00:25.7]} 29. Qxf4 {[%clk 0:00:38.5]}
29... Nxf4 {[%clk 0:00:26.5]} 30. Bd2 {[%clk 0:00:31.3]} 30... Bd5 {[%clk
0:00:21.2]} 31. Re7 {[%clk 0:00:27.5]} 31... R8c7 {[%clk 0:00:19.6]} 32. Rxc7
{[%clk 0:00:25.8]} 32... Rxc7 {[%clk 0:00:20.5]} 33. Bxf4 {[%clk 0:00:26.4]}
33... Rd7 {[%clk 0:00:20.6]} 34. Ne6+ {[%clk 0:00:20.6]} 34... Kh7 {[%clk
0:00:20.9]} 35. Nf8+ {[%clk 0:00:20.9]} 1-0

[Event "*** Titled Tuesday Blitz"]
[Site "Chess.com"]
[Date "2021.02.02"]
[Round "3"]
[White "politeplayer"]
[Black "publicaccountcze"]
[Result "1-0"]
[WhiteElo "2209"]
[BlackElo "2362"]
[TimeControl "180+1"]
[EndTime "10:30:48 PST"]
[Termination "politeplayer won on time"]

1. e4 {[%clk 0:03:00.9]} 1... c5 {[%clk 0:02:59.6]} 2. Nf3 {[%clk 0:02:59.2]}
2... d6 {[%clk 0:02:59.2]} 3. d4 {[%clk 0:02:58.5]} 3... cxd4 {[%clk 0:02:58.2]}
4. Nxd4 {[%clk 0:02:59.1]} 4... Nf6 {[%clk 0:02:58.4]} 5. Nc3 {[%clk 0:02:59.6]}
5... Nc6 {[%clk 0:02:58.8]} 6. Bc4 {[%clk 0:02:58.7]} 6... Qb6 {[%clk
0:02:55.9]} 7. Nb3 {[%clk 0:02:55.9]} 7... e6 {[%clk 0:02:53.6]} 8. Be3 {[%clk
0:02:53.9]} 8... Qc7 {[%clk 0:02:52.8]} 9. Bd3 {[%clk 0:02:51]} 9... a6 {[%clk
0:02:51.8]} 10. f4 {[%clk 0:02:50.1]} 10... Be7 {[%clk 0:02:49.9]} 11. Qf3
{[%clk 0:02:47.9]} 11... b5 {[%clk 0:02:46.2]} 12. g4 {[%clk 0:02:39.1]} 12...
b4 {[%clk 0:02:45.4]} 13. Ne2 {[%clk 0:02:38.6]} 13... Bb7 {[%clk 0:02:44.3]}
14. g5 {[%clk 0:02:35]} 14... Nd7 {[%clk 0:02:42.8]} 15. h4 {[%clk 0:02:32.7]}
15... a5 {[%clk 0:02:38.6]} 16. Nbd4 {[%clk 0:02:22.2]} 16... Nxd4 {[%clk
0:02:36.4]} 17. Nxd4 {[%clk 0:02:21.5]} 17... Nc5 {[%clk 0:02:27.9]} 18. Bb5+
{[%clk 0:02:15.4]} 18... Kd8 {[%clk 0:02:12.2]} 19. Bd3 {[%clk 0:02:13.4]} 19...
Nxd3+ {[%clk 0:01:48.8]} 20. cxd3 {[%clk 0:02:12.6]} 20... Qd7 {[%clk
0:01:45.8]} 21. f5 {[%clk 0:02:06.7]} 21... e5 {[%clk 0:01:43.2]} 22. f6 {[%clk
0:01:58.8]} 22... exd4 {[%clk 0:01:32.1]} 23. fxe7+ {[%clk 0:01:58.8]} 23...
Qxe7 {[%clk 0:01:29.8]} 24. Bxd4 {[%clk 0:01:57.4]} 24... Rg8 {[%clk 0:01:22.2]}
25. Rf1 {[%clk 0:01:54.6]} 25... Ke8 {[%clk 0:01:19.6]} 26. O-O-O {[%clk
0:01:49.3]} 26... Rc8+ {[%clk 0:01:18.6]} 27. Kb1 {[%clk 0:01:49.1]} 27... Qe6
{[%clk 0:01:11.4]} 28. Qf5 {[%clk 0:01:38.1]} 28... Qxf5 {[%clk 0:01:09.5]} 29.
Rxf5 {[%clk 0:01:37.2]} 29... a4 {[%clk 0:01:02.5]} 30. Rb5 {[%clk 0:01:31.7]}
30... Bc6 {[%clk 0:00:48.9]} 31. Rxb4 {[%clk 0:01:21.8]} 31... Ke7 {[%clk
0:00:47.5]} 32. Rc1 {[%clk 0:01:19.9]} 32... Bd7 {[%clk 0:00:46.4]} 33. Rb7
{[%clk 0:01:16.6]} 33... Rxc1+ {[%clk 0:00:44.1]} 34. Kxc1 {[%clk 0:01:16.6]}
34... Rc8+ {[%clk 0:00:41.7]} 35. Kd2 {[%clk 0:01:16.9]} 35... g6 {[%clk
0:00:40.8]} 36. Bf6+ {[%clk 0:01:14.8]} 36... Ke6 {[%clk 0:00:35.4]} 37. d4
{[%clk 0:01:11.8]} 37... d5 {[%clk 0:00:14.9]} 38. exd5+ {[%clk 0:01:04.6]}
38... Kd6 {[%clk 0:00:14]} 39. Be5+ {[%clk 0:01:03.2]} 39... Kxd5 {[%clk
0:00:12.1]} 40. Rxd7+ {[%clk 0:01:02.3]} 40... Ke4 {[%clk 0:00:11.3]} 41. Rxf7
{[%clk 0:01:02.1]} 1-0

[Event "*** Titled Tuesday Blitz"]
[Site "Chess.com"]
[Date "2021.02.02"]
[Round "3"]
[White "hansen"]
[Black "leejunhyeok"]
[Result "1-0"]
[WhiteElo "2902"]
[BlackElo "2646"]
[TimeControl "180+1"]
[EndTime "10:30:51 PST"]
[Termination "hansen won on time"]

1. e4 {[%clk 0:02:52.7]} 1... d5 {[%clk 0:02:59.8]} 2. exd5 {[%clk 0:02:51.3]}
2... Qxd5 {[%clk 0:03:00.7]} 3. Nc3 {[%clk 0:02:51.7]} 3... Qd8 {[%clk
0:03:00.6]} 4. d4 {[%clk 0:02:51.8]} 4... Nf6 {[%clk 0:03:00.2]} 5. Nf3 {[%clk
0:02:45.5]} 5... Bg4 {[%clk 0:02:59.9]} 6. h3 {[%clk 0:02:45.5]} 6... Bxf3
{[%clk 0:02:59.9]} 7. Qxf3 {[%clk 0:02:45.8]} 7... c6 {[%clk 0:03:00.3]} 8. Qd3
{[%clk 0:02:28]} 8... e6 {[%clk 0:02:51.3]} 9. Be2 {[%clk 0:02:28.3]} 9... Nbd7
{[%clk 0:02:50]} 10. O-O {[%clk 0:02:27.8]} 10... Bd6 {[%clk 0:02:49.8]} 11. Rd1
{[%clk 0:02:22.7]} 11... O-O {[%clk 0:02:48.1]} 12. Bf3 {[%clk 0:02:22.6]} 12...
Qc7 {[%clk 0:02:47.6]} 13. g3 {[%clk 0:02:20.9]} 13... Rfe8 {[%clk 0:02:42.9]}
14. Ne4 {[%clk 0:02:14.4]} 14... Nxe4 {[%clk 0:02:36.8]} 15. Bxe4 {[%clk
0:02:14.7]} 15... Nf6 {[%clk 0:02:36]} 16. Bg2 {[%clk 0:02:15.4]} 16... Rad8
{[%clk 0:02:34]} 17. c3 {[%clk 0:02:15.2]} 17... h6 {[%clk 0:02:32]} 18. a4
{[%clk 0:02:09.8]} 18... a5 {[%clk 0:01:58.7]} 19. Re1 {[%clk 0:02:03.1]} 19...
e5 {[%clk 0:01:47.9]} 20. dxe5 {[%clk 0:01:53.3]} 20... Bxe5 {[%clk 0:01:42.8]}
21. Qf3 {[%clk 0:01:51.6]} 21... Nd5 {[%clk 0:01:17.2]} 22. Re2 {[%clk
0:01:38.1]} 22... Qb6 {[%clk 0:01:10.8]} 23. Bd2 {[%clk 0:01:05]} 23... Qxb2
{[%clk 0:00:23.5]} 24. Rae1 {[%clk 0:01:04.8]} 24... Re6 {[%clk 0:00:06.3]} 25.
Bg5 {[%clk 0:01:03.5]} 25... Qxe2 {[%clk 0:00:02.2]} 26. Rxe2 {[%clk 0:01:02.7]}
26... hxg5 {[%clk 0:00:03.1]} 27. Rb2 {[%clk 0:00:59.2]} 27... Nxc3 {[%clk
0:00:03.1]} 28. Rxb7 {[%clk 0:00:58.5]} 28... Rd1+ {[%clk 0:00:03.1]} 29. Bf1
{[%clk 0:00:50.7]} 29... Rf6 {[%clk 0:00:03.4]} 30. Qh5 {[%clk 0:00:36.7]} 30...
g6 {[%clk 0:00:03.7]} 31. Qh6 {[%clk 0:00:29.3]} 31... Rf3 {[%clk 0:00:02.5]}
32. Re7 {[%clk 0:00:26.4]} 32... Bg7 {[%clk 0:00:01.3]} 33. Re8+ {[%clk
0:00:26.6]} 1-0

[Event "*** Titled Tuesday Blitz"]
[Site "Chess.com"]
[Date "2021.02.02"]
[Round "3"]
[White "Alexander_Moskalenko"]
[Black "kikydu96"]
[Result "1-0"]
[WhiteElo "2798"]
[BlackElo "2566"]
[TimeControl "180+1"]
[EndTime "10:30:51 PST"]
[Termination "Alexander_Moskalenko won by resignation"]

1. e4 {[%clk 0:03:00.9]} 1... e5 {[%clk 0:02:58.3]} 2. Bc4 {[%clk 0:02:59.7]}
2... Nf6 {[%clk 0:02:57.9]} 3. d3 {[%clk 0:02:59.4]} 3... c6 {[%clk 0:02:56.7]}
4. Nf3 {[%clk 0:02:56.9]} 4... d5 {[%clk 0:02:56.6]} 5. Bb3 {[%clk 0:02:54.7]}
5... Bd6 {[%clk 0:02:55]} 6. Nc3 {[%clk 0:02:53.8]} 6... Be6 {[%clk 0:02:54]} 7.
Ng5 {[%clk 0:02:52.8]} 7... O-O {[%clk 0:02:52.1]} 8. Nxe6 {[%clk 0:02:52.3]}
8... fxe6 {[%clk 0:02:53]} 9. O-O {[%clk 0:02:52.6]} 9... Nbd7 {[%clk
0:02:51.9]} 10. Qe2 {[%clk 0:02:50.3]} 10... Qe8 {[%clk 0:02:50.6]} 11. Bd2
{[%clk 0:02:46.2]} 11... Qg6 {[%clk 0:02:50.4]} 12. Kh1 {[%clk 0:02:45.3]} 12...
a5 {[%clk 0:02:43]} 13. a3 {[%clk 0:02:43.6]} 13... Kh8 {[%clk 0:02:27]} 14.
Rae1 {[%clk 0:02:03.4]} 14... Nh5 {[%clk 0:02:21.6]} 15. g3 {[%clk 0:02:02.3]}
15... h6 {[%clk 0:01:57.6]} 16. Nd1 {[%clk 0:02:00]} 16... Nhf6 {[%clk
0:01:44.9]} 17. c3 {[%clk 0:01:56.5]} 17... Rf7 {[%clk 0:01:27.2]} 18. Bc2
{[%clk 0:01:54.2]} 18... Raf8 {[%clk 0:01:25.5]} 19. Kg1 {[%clk 0:01:51.1]}
19... Ng4 {[%clk 0:01:18.8]} 20. Ne3 {[%clk 0:01:37.3]} 20... Ndf6 {[%clk
0:00:48.3]} 21. f3 {[%clk 0:01:31.8]} 21... Nxe3 {[%clk 0:00:47.5]} 22. Bxe3
{[%clk 0:01:32.7]} 22... Nh5 {[%clk 0:00:48]} 23. Kh1 {[%clk 0:01:28.6]} 23...
b5 {[%clk 0:00:22.7]} 24. c4 {[%clk 0:01:19.4]} 24... d4 {[%clk 0:00:20.4]} 25.
Bd2 {[%clk 0:01:12.6]} 25... b4 {[%clk 0:00:20.9]} 26. axb4 {[%clk 0:01:05.1]}
26... Bxb4 {[%clk 0:00:21.8]} 27. Bxb4 {[%clk 0:01:03.1]} 27... axb4 {[%clk
0:00:22.7]} 28. Bd1 {[%clk 0:00:58.3]} 28... Ra7 {[%clk 0:00:20.7]} 29. f4
{[%clk 0:00:57.8]} 29... Nf6 {[%clk 0:00:11.1]} 30. fxe5 {[%clk 0:00:57.6]}
30... Nd7 {[%clk 0:00:11.8]} 31. Rxf8+ {[%clk 0:00:57.2]} 31... Nxf8 {[%clk
0:00:12.7]} 32. Qg4 {[%clk 0:00:46.3]} 32... Qf7 {[%clk 0:00:09.5]} 33. Kg2
{[%clk 0:00:41.3]} 33... Ra2 {[%clk 0:00:10]} 34. Re2 {[%clk 0:00:41.2]} 34...
Nd7 {[%clk 0:00:08.7]} 35. Rf2 {[%clk 0:00:41.6]} 35... Qe7 {[%clk 0:00:09.2]}
36. Qh5 {[%clk 0:00:41.7]} 36... Nxe5 {[%clk 0:00:08.9]} 37. Qxe5 {[%clk
0:00:41]} 1-0

[Event "*** Titled Tuesday Blitz"]
[Site "Chess.com"]
[Date "2021.02.02"]
[Round "3"]
[White "MPGM"]
[Black "Vasily85"]
[Result "0-1"]
[WhiteElo "2583"]
[BlackElo "2421"]
[TimeControl "180+1"]
[EndTime "10:30:52 PST"]
[Termination "Vasily85 won by resignation"]

1. c4 {[%clk 0:03:00.9]} 1... c5 {[%clk 0:02:53.7]} 2. Nc3 {[%clk 0:02:59.5]}
2... g6 {[%clk 0:02:52.2]} 3. g3 {[%clk 0:02:59.1]} 3... Bg7 {[%clk 0:02:52.4]}
4. Bg2 {[%clk 0:02:59.3]} 4... Nc6 {[%clk 0:02:52.6]} 5. b3 {[%clk 0:02:58.8]}
5... e6 {[%clk 0:02:50.6]} 6. Ba3 {[%clk 0:02:57.6]} 6... b6 {[%clk 0:02:44.6]}
7. e3 {[%clk 0:02:55.9]} 7... Nge7 {[%clk 0:02:41]} 8. Nge2 {[%clk 0:02:55.5]}
8... O-O {[%clk 0:02:27.1]} 9. d4 {[%clk 0:02:53.5]} 9... d6 {[%clk 0:02:24]}
10. O-O {[%clk 0:02:49.4]} 10... Bb7 {[%clk 0:02:22.8]} 11. Rc1 {[%clk
0:02:42.6]} 11... Rc8 {[%clk 0:02:20]} 12. d5 {[%clk 0:02:35.7]} 12... Na5
{[%clk 0:01:54]} 13. e4 {[%clk 0:02:18.8]} 13... exd5 {[%clk 0:01:32.9]} 14.
exd5 {[%clk 0:02:11.4]} 14... a6 {[%clk 0:01:24.4]} 15. Qd2 {[%clk 0:02:01.8]}
15... b5 {[%clk 0:01:08.1]} 16. cxb5 {[%clk 0:01:55.3]} 16... axb5 {[%clk
0:00:59.7]} 17. Nxb5 {[%clk 0:01:55.2]} 17... Ba6 {[%clk 0:00:57.7]} 18. Na7
{[%clk 0:01:31.7]} 18... Ra8 {[%clk 0:00:34.2]} 19. Nc6 {[%clk 0:01:30.2]} 19...
Naxc6 {[%clk 0:00:34.2]} 20. dxc6 {[%clk 0:01:29.8]} 20... Bxe2 {[%clk
0:00:34.3]} 21. c7 {[%clk 0:01:02]} 21... Qxc7 {[%clk 0:00:34.3]} 22. Bxa8
{[%clk 0:01:02.4]} 22... Bxf1 {[%clk 0:00:31.9]} 23. Bf3 {[%clk 0:00:54.8]}
23... Bb5 {[%clk 0:00:27.6]} 24. Rd1 {[%clk 0:00:53.5]} 24... Rd8 {[%clk
0:00:25.8]} 25. Bb2 {[%clk 0:00:50.1]} 25... Bc6 {[%clk 0:00:24.5]} 26. Bxc6
{[%clk 0:00:45.2]} 26... Nxc6 {[%clk 0:00:24.5]} 27. Bxg7 {[%clk 0:00:46]} 27...
Kxg7 {[%clk 0:00:25.4]} 28. Qd5 {[%clk 0:00:44.9]} 28... Nd4 {[%clk 0:00:22.3]}
29. b4 {[%clk 0:00:41.7]} 29... Qb6 {[%clk 0:00:16.1]} 30. a3 {[%clk 0:00:40.8]}
30... Rb8 {[%clk 0:00:14.9]} 31. h4 {[%clk 0:00:37.3]} 31... Ne2+ {[%clk
0:00:13.8]} 32. Kf1 {[%clk 0:00:34.4]} 32... Nc3 {[%clk 0:00:13.4]} 33. Qxd6
{[%clk 0:00:31.7]} 33... Nxd1 {[%clk 0:00:12.2]} 34. Qxd1 {[%clk 0:00:32.4]}
34... cxb4 {[%clk 0:00:11.9]} 35. axb4 {[%clk 0:00:32.2]} 35... Qxb4 {[%clk
0:00:12.8]} 36. h5 {[%clk 0:00:32.8]} 36... Qb1 {[%clk 0:00:13]} 0-1